Cogmind - Beta 14 @@@ ROGUE MODE // 2024.10.19 @ 08:40:52 Player: canerib Result: Destroyed by Y-45 Defender with Beam Rifle Performance ------------- Evolutions (2) 1000 Regions Visited (6) 1200 Robots Destroyed (23) 115 Value Destroyed (664) 664 Prototype IDs (25) 500 Alien Tech Used (0) 0 Bonus (433) 433 TOTAL SCORE: 3912 Bonus ------- Follower Combat Kills 133 Aligned with FarCom 300 Cogmind --------- Core Integrity 0/550 Matter 300/300 Energy 100/100 System Corruption 4% Temperature Warm (157) Movement Core (300) Ox5 Location -8/Storage Parts ------- > --- POWER (1) -------- (None) > --- PROPULSION (6) --- (None) > --- UTILITY (2) ------ Medium Storage Unit Melee Analysis Suite > --- WEAPON (2) ------- Heavy Mace Longsword +1 > --- INVENTORY (10) --- Light Treads Weight Redist. System Advanced Weight Redist. System Melee Analysis Suite Advanced ECM Suite Reaction Control System Hacking Suite Peak State ------------ > --- POWER ------------ Light Nuclear Core > --- PROPULSION ------- Aluminum Leg Carbon-fiber Leg Carbon-fiber Leg Improved Hover Unit Improved Hover Unit Flight Unit > --- UTILITY ---------- Medium Storage Unit Thief Drone Bay > --- WEAPON ----------- Heavy Hammer Longsword +1 > --- INVENTORY -------- Light Deuterium Engine Flight Unit Weight Redist. System Advanced Weight Redist. System Melee Analysis Suite Melee Analysis Suite Advanced ECM Suite Reaction Control System Hacking Suite Heavy Mace [Rating: 35] Favorites ----------- Power Ion Engine Engine Ion Engine Power Core Light Nuclear Core Propulsion Aluminum Leg Leg Aluminum Leg Wheel Wheel Hover Unit Improved Hover Unit Flight Unit Flight Unit Utility Medium Storage Unit Device Thief Drone Bay Storage Medium Storage Unit Processor Melee Analysis Suite Weapon Small Laser Energy Gun Small Laser Impact Weapon Heavy Hammer Slashing Weapon Longsword +1 Build | -11 -10 -10 -10 -9 -8 -8 ------- Run | Yrd Mat Min Exi Min Mat Sto Slots Evolved 4 | . . . . . 4 . Power . | . . . . . . . Propulsion 4 | . . . . . 4 . Utility . | . . . . . . . Weapon . | . . . . . . . Parts Attached 38 | 6 . . 5 2 22 3 Power 5 | 1 . . . 1 2 1 Engine 3 | 1 . . . 1 . 1 Core 2 | . . . . . 2 . Reactor . | . . . . . . . Propulsion 20 | 2 . . . . 17 1 Treads . | . . . . . . . Leg 9 | 2 . . . . 7 . Wheel 1 | . . . . . . 1 Hover 2 | . . . . . 2 . Flight 8 | . . . . . 8 . Utility 7 | 1 . . 4 1 1 . Device 2 | . . . 1 1 . . Storage 4 | 1 . . 3 . . . Processor 1 | . . . . . 1 . Hackware . | . . . . . . . Protection . | . . . . . . . Artifact . | . . . . . . . Weapon 6 | 2 . . 1 . 2 1 Energy Gun 2 | 2 . . . . . . Energy Cannon . | . . . . . . . Ballistic Gun . | . . . . . . . Ballistic Cannon . | . . . . . . . Launcher . | . . . . . . . Special Weapon . | . . . . . . . Impact Weapon 2 | . . . . . 2 . Slashing Weapon 2 | . . . 1 . . 1 Piercing Weapon . | . . . . . . . Special Melee Weapon . | . . . . . . . Unidentified Prototypes 4 | . . . 2 1 1 . Parts Lost 14 | . . . . . 12 2 Power 2 | . . . . . 1 1 Propulsion 10 | . . . . . 10 . Utility 1 | . . . . . 1 . Weapon 1 | . . . . . . 1 Highest Loss Streak 6 | . . . . . 6 2 To Critical Strikes . | . . . . . . . Average Slot Usage (%) 92 | . 85 85 97 100 97 41 Engine 9 | . 14 14 14 14 3 5 Core 1 | . . . . . 5 . Leg 22 | . 28 28 28 28 20 . Flight 8 | . . . . . 29 . Device 5 | . . . . 10 8 . Storage 16 | . 14 14 25 17 9 9 Processor 1 | . . . . . . 9 Energy Gun 12 | . 28 28 23 14 2 . Impact Weapon 4 | . . . . . 8 15 Slashing Weapon 7 | . . . 4 14 7 1 Peak Build Rating 35 | 6 6 6 23 23 35 17 Average Rating 18 | 4 6 6 10 21 29 13 On Entrance 9 | . 6 6 6 17 22 12 Naked Turns . | . . . . . . . Heaviest Build 25 | 12 12 12 20 23 25 21 Greatest Support 42 | 20 20 20 20 20 42 10 Greatest Overweight (x) 6 | . . . . 1 5 6 Average Overweight (x) . | . . . . . . 5 Largest Inventory Capacity 10 | 8 8 8 10 10 10 10 Average Capacity 9 | 5 8 8 8 10 10 10 Most Carried 10 | 5 5 5 9 10 10 9 Average Carried 7 | 2 4 5 5 9 9 6 Final Capacity 10 | 8 8 8 10 10 10 10 Final Carried 10 | 3 5 5 9 10 10 7 Class Distribution -------------------- 71% | Mutant 14% | Scavenger-Mutant 12% | Gladiator Dominant Class ---------------- Mutant | -10/Materials Mutant | -10/Mines Mutant | -10/Exiles Mutant | -9/Mines Scavenger-Mutant | -8/Materials Gladiator | -8/Storage Resources | -11 -10 -10 -10 -9 -8 -8 ----------- Run | Yrd Mat Min Exi Min Mat Sto Matter Collected 567 | 260 . . . 70 209 28 Remotely . | . . . . . . . Salvage Created 739 | 63 25 . . 49 446 156 Parts 34 | 6 2 . . 7 12 7 Haulers Intercepted . | . . . . . . . Recyclers Shooed . | . . . . . . . Parts Field Recycled . | . . . . . . . Retrieved Matter . | . . . . . . . Parts Self-Destructed . | . . . . . . . Prevented . | . . . . . . . Kills | -11 -10 -10 -10 -9 -8 -8 ------- Run | Yrd Mat Min Exi Min Mat Sto Combat Hostiles Destroyed 15 | . . . . 4 8 3 Melee 9 | . . . . 4 4 1 Classes Destroyed 9 | 1 1 . . 1 6 . Builder 2 | . . . . . 2 . Tunneler 3 | 3 . . . . . . Operator 1 | . . . . . 1 . Watcher 2 | . 1 . . . 1 . Swarmer 4 | . . . . 4 . . Grunt 5 | . . . . . 5 . Sentry 4 | . . . . . 1 3 Specialist 1 | . . . . . 1 . Heavy 1 | . . . . . 1 . Best Kill Streak 4 | 1 1 . . 2 4 2 Combat Bots Only 3 | . . . . 2 3 2 Max Kills in Single Turn 1 | 1 1 . . 1 1 1 Gunslinging . | . . . . . . . Exploded . | . . . . . . . Melee 1 | . . . . 1 1 1 Uniques/NPCs Destroyed . | . . . . . . . Combat | -11 -10 -10 -10 -9 -8 -8 -------- Run | Yrd Mat Min Exi Min Mat Sto Hostile Shots Fired 171 | . 2 . . 11 95 63 Missed 60 | . . . . 3 36 21 Damage Taken 2131 | . 24 . . 69 1437 601 Core 557 | . . . . . 259 298 Absorbed by Shields . | . . . . . . . Core Remaining (%) 100 | 100 . . . 100 . . Volleys Fired 10 | 9 1 . . . . . Largest 2 | 2 2 . . . . . Hottest 80 | 80 80 . . . . . Shots Fired 20 | 18 2 . . . . . Gun 20 | 18 2 . . . . . Cannon . | . . . . . . . Launcher . | . . . . . . . Special . | . . . . . . . Kinetic . | . . . . . . . Thermal 20 | 18 2 . . . . . Explosive . | . . . . . . . Electromagnetic . | . . . . . . . Robot Hit Streak 4 | 4 1 . . . . . Robot Miss Streak 2 | 2 1 . . . . . Penetration Max . | . . . . . . . Secondary Targets . | . . . . . . . Shots Hit Robots 51 | 12 1 . . 6 21 11 Core Hits 12 | 3 1 . . 3 4 1 Critical Kills 1 | . . . . . 1 . Critical Parts Destroyed 3 | . . . . . 3 . Critical Strikes 6 | . . . . 1 4 1 Smash 4 | . . . . . 4 . Sever 2 | . . . . 1 . 1 Melee Attacks 64 | . . . . 9 39 16 Impact 48 | . . . . . 34 14 Slashing 16 | . . . . 9 5 2 Piercing . | . . . . . . . Sneak Attacks 4 | . . . . . 4 . Combat Hostiles . | . . . . . . . Follow-up Attacks 6 | . . . . . 4 2 Damage Inflicted 1826 | 128 12 . . 290 1016 380 Guns 140 | 128 12 . . . . . Cannons . | . . . . . . . Explosions . | . . . . . . . Melee 1686 | . . . . 290 1016 380 Ramming . | . . . . . . . Kinetic . | . . . . . . . Thermal 140 | 128 12 . . . . . Explosive . | . . . . . . . Electromagnetic . | . . . . . . . Impact 1119 | . . . . . 837 282 Slashing 567 | . . . . 290 179 98 Piercing . | . . . . . . . Highest Corruption 4 | . . . . . 4 4 Average Corruption 4 | . . . . . 4 4 Corruption Purged . | . . . . . . . Corruption Blocked . | . . . . . . . Effects 15 | . . . . . 9 6 Message Errors 3 | . . . . . 2 1 Matter Fused 2 | . . . . . 1 1 Heat Flow Errors 3 | . . . . . 2 1 Energy Discharges 2 | . . . . . 2 . Parts Rejected 1 | . . . . . . 1 Data Loss (minor) 4 | . . . . . 2 2 Overload Shots . | . . . . . . . Overflow Damage 307 | . . . . 35 254 18 Projectiles . | . . . . . . . Explosions . | . . . . . . . Melee 307 | . . . . 35 254 18 Knockbacks 3 | . . . . . 3 . Impact 3 | . . . . . 3 . Kinetic . | . . . . . . . Secondary . | . . . . . . . Self-Inflicted Damage . | . . . . . . . Shots . | . . . . . . . Rammed . | . . . . . . . Targets Rammed . | . . . . . . . Kicked . | . . . . . . . Crushed . | . . . . . . . Highest Temperature 264 | 54 18 . . . 264 . Average Temperature 48 | 25 12 . . . 70 . Received Heat Transfer 459 | . 12 . . 6 252 189 Effects 1 | . . . . . 1 . Interference 1 | . . . . . 1 . Siege Activations . | . . . . . . . Robots Corrupted 10 | . . . . . 8 2 Combat Hostiles 6 | . . . . . 4 2 Parts Fried 16 | . . . . . 14 2 Impact Corruptions 18 | . . . . . 16 2 Robots Melted . | . . . . . . . Combat Hostiles . | . . . . . . . Parts Melted . | . . . . . . . Heat Transferred 325 | 300 25 . . . . . Parts Sabotaged . | . . . . . . . Parts Stolen . | . . . . . . . Parts Stripped . | . . . . . . . Power Chain Reactions . | . . . . . . . Alert | -11 -10 -10 -10 -9 -8 -8 ------- Run | Yrd Mat Min Exi Min Mat Sto Peak Influence 210 | 15 31 12 . 210 153 104 Initial 30 | . 9 12 . . 30 10 Average 48 | 5 23 12 . 39 71 32 Maximum Alert Level 1 | . . . . 1 . . Low Security (%) 99 | 100 100 100 . 97 100 100 Level 1 . | . . . . 2 . . Level 2 . | . . . . . . . Level 3 . | . . . . . . . Level 4 . | . . . . . . . Level 5 . | . . . . . . . High Security . | . . . . . . . Max Security . | . . . . . . . Squads Dispatched 8 | . 3 . . . 5 . Investigation 1 | . 1 . . . . . Extermination . | . . . . . . . Reinforcement 7 | . 2 . . . 5 . Assault . | . . . . . . . Garrison . | . . . . . . . Intercept . | . . . . . . . Searches Triggered . | . . . . . . . Construction Impeded 1 | . . . . . 1 . Haulers Reinforced . | . . . . . . . Active Scanning Responses . | . . . . . . . Cargo Convoy Interrupts . | . . . . . . . Stealth | -11 -10 -10 -10 -9 -8 -8 --------- Run | Yrd Mat Min Exi Min Mat Sto Distress Signals 3 | . . . . . 1 2 Communications Jammed . | . . . . . . . Distress Signals . | . . . . . . . Times Spotted 45 | . 7 . . 9 23 6 Peak Tracking Total 7 | . 7 . . 5 6 5 Tactical Retreats 8 | . . . . 4 4 . Traps | -11 -10 -10 -10 -9 -8 -8 ------- Run | Yrd Mat Min Exi Min Mat Sto Traps Triggered 1 | . 1 . . . . . Indirectly . | . . . . . . . Trap Hack Attempts . | . . . . . . . Triggered . | . . . . . . . Disarmed . | . . . . . . . Reprogrammed . | . . . . . . . Reused . | . . . . . . . Traps Extracted . | . . . . . . . Installed . | . . . . . . . Triggered . | . . . . . . . Machines | -11 -10 -10 -10 -9 -8 -8 ---------- Run | Yrd Mat Min Exi Min Mat Sto Machines Disabled . | . . . . . . . Max in Single Turn . | . . . . . . . Machines Repaired . | . . . . . . . Machines Dismantled . | . . . . . . . Machines Sabotaged . | . . . . . . . Overloaded Fab Kills . | . . . . . . . Hacking | -11 -10 -10 -10 -9 -8 -8 --------- Run | Yrd Mat Min Exi Min Mat Sto Machines Accessed 12 | . 2 . 4 1 3 2 Terminals 7 | . 2 . . . 3 2 Fabricators . | . . . . . . . Repair Stations . | . . . . . . . Recycling Units . | . . . . . . . Scanalyzers . | . . . . . . . Garrison Access . | . . . . . . . Total Hacks 42 | . 4 . 27 1 7 3 Successful 34 | . 2 . 27 1 1 3 Failed 8 | . 2 . . . 6 . Catastrophic 4 | . . . . . 4 . Database Lockouts . | . . . . . . . Manual 10 | . 2 . 2 . 6 . Terminals 14 | . 4 . . . 7 3 Fabricators . | . . . . . . . Repair Stations . | . . . . . . . Recycling Units . | . . . . . . . Scanalyzers . | . . . . . . . Garrison Access . | . . . . . . . Terminal Hacks 34 | . 2 . 27 1 1 3 Record 26 | . . . 26 . . . Open Door 1 | . . . . 1 . . Branch Access Points 2 | . 1 . . . . 1 Emergency Access Points 1 | . . . . . . 1 Alert Level 2 | . 1 . . . 1 . Maintenance Status 1 | . . . . . . 1 Derelict Proto ID Bank 1 | . . . 1 . . . Fabricator Hacks . | . . . . . . . Repair Station Hacks . | . . . . . . . Recycling Unit Hacks . | . . . . . . . Scanalyzer . | . . . . . . . Garrison Access Hacks . | . . . . . . . Unauthorized Hacks . | . . . . . . . Terminals . | . . . . . . . Fabricators . | . . . . . . . Repair Stations . | . . . . . . . Recycling Units . | . . . . . . . Scanalyzers . | . . . . . . . Garrison Access . | . . . . . . . Data Cores Recovered . | . . . . . . . Used . | . . . . . . . Hacking Detections 7 | . 2 . . . 3 2 Full Trace Events . | . . . . . . . Feedback Events . | . . . . . . . Feedback Blocked . | . . . . . . . Robot Schematics Acquired . | . . . . . . . Robots Built . | . . . . . . . Authchips . | . . . . . . . Time . | . . . . . . . Total Robot Build Rating . | . . . . . . . Part Schematics Acquired . | . . . . . . . Parts Built . | . . . . . . . Authchips . | . . . . . . . Time . | . . . . . . . Total Part Build Rating . | . . . . . . . Parts Repaired . | . . . . . . . Time . | . . . . . . . Parts Recycled . | . . . . . . . Recycled Matter . | . . . . . . . Retrieved Matter . | . . . . . . . Retrieved Components . | . . . . . . . Parts Scanalyzed . | . . . . . . . Part Schematics Acquired . | . . . . . . . Parts Damaged . | . . . . . . . Bothacking | -11 -10 -10 -10 -9 -8 -8 ------------ Run | Yrd Mat Min Exi Min Mat Sto Used RIF Installer . | . . . . . . . Robots Hacked . | . . . . . . . Non-combat . | . . . . . . . Combat . | . . . . . . . Robot Hacks Applied . | . . . . . . . Relay Couplers Released . | . . . . . . . Fabnet Peak Effective % . | . . . . . . . Robots Rewired . | . . . . . . . Allies Hacked . | . . . . . . . Hacks Repelled . | . . . . . . . Allies | -11 -10 -10 -10 -9 -8 -8 -------- Run | Yrd Mat Min Exi Min Mat Sto Total Allies . | . . . . . . . Largest Group . | . . . . . . . Highest-Rated Group . | . . . . . . . Highest-Rated Ally . | . . . . . . . Total Orders . | . . . . . . . Ally Attacks 86 | . . . . 19 67 . Total Damage 1002 | . . . . 354 648 . Kills 8 | . . . . 4 4 . Allies Corrupted . | . . . . . . . Allies Melted . | . . . . . . . Turrets Deployed 2 | . . . . 1 1 . Intel | -11 -10 -10 -10 -9 -8 -8 ------- Run | Yrd Mat Min Exi Min Mat Sto Robot Analysis Total . | . . . . . . . Derelict Logs Recovered 1 | . . . . 1 . . Drone Launches 16 | . . . . 3 13 . Drone Recoveries 14 | . . . . 3 11 . Exploration | -11 -10 -10 -10 -9 -8 -8 ------------- Run | Yrd Mat Min Exi Min Mat Sto Turns Passed 2992 | 144 82 30 879 701 866 290 Spaces Moved 1907 | 91 64 26 719 388 542 77 Core 81 | 11 . . . . 2 68 Treads . | . . . . . . . Legs 1560 | 80 64 26 719 388 283 . Wheels 9 | . . . . . . 9 Hover . | . . . . . . . Flight 257 | . . . . . 257 . Fastest Speed 24 | 50 120 120 120 120 24 95 Average Speed 133 | 111 120 120 120 164 108 305 Slowest Speed 350 | 120 120 120 120 190 300 350 Overloaded Moves . | . . . . . . . Propulsion Burnouts . | . . . . . . . Robots Hopped 5 | . . . . 4 1 . Cave-ins Triggered 1 | . . . . . 1 . Exploration Rate (%) 38 | 6 23 8 91 67 54 19 Regions Visited 6 Branch Regions 4 Pre-discovered Areas 1 | . . . . 1 . . Known Exits Taken 1 | . 1 . . . . . Unknown Exits Taken 5 | 1 . 1 1 1 1 . Scrap Searched . | . . . . . . . Spaces Dug 12 | . . . . . 10 2 Terrain Destroyed 12 | . . . . . 10 2 Melee 12 | . . . . . 10 2 Projectile . | . . . . . . . AOE . | . . . . . . . Terrain Rammed . | . . . . . . . Walls Destroyed . | . . . . . . . Machines Disabled . | . . . . . . . Actions | -11 -10 -10 -10 -9 -8 -8 --------- Run | Yrd Mat Min Exi Min Mat Sto Total 2262 | 116 67 25 735 438 770 111 Wait 167 | . 1 . . 35 121 10 Move 1891 | 90 63 25 718 379 539 77 Hop 5 | . . . . 4 1 . Pick Up 60 | 10 2 . 8 5 31 4 Fast Attach . | . . . . . . . Attach 22 | 6 . . 2 . 11 3 Detach 1 | . . . 1 . . . Swap 16 | . . . 3 2 11 . Drop 36 | 1 . . 3 4 24 4 Fire 10 | 9 1 . . . . . Melee 54 | . . . . 9 32 13 Ram . | . . . . . . . Kick . | . . . . . . . Crush . | . . . . . . . Escape Stasis . | . . . . . . . Rewire . | . . . . . . . Trap . | . . . . . . . Miscellaneous . | . . . . . . . Route ------- -11/Scrapyard -10/Materials -10/Mines -10/Exiles (discovered 2 exits: *Min x2) -9/Mines -8/Materials -8/Storage (discovered 1 exit: Rec) History --------- Turn | Location | Event 7 | -11/Scrapyard | Discovered new exit (range 15) 145 | -11/Scrapyard | Entered Materials 174 | -10/Materials | Identified exit to Mines 221 | -10/Materials | Met 8R-AWN 227 | -10/Materials | Entered Mines 229 | -10/Mines | Followed 8R-AWN into the Mines 233 | -10/Mines | Met a Derelict bent on vengeance 250 | -10/Mines | Discovered new exit (range 5) 257 | -10/Mines | Entered Exiles 286 | -10/Exiles | Discovered new exit (range 15) 302 | -10/Exiles | Welcomed by 8R-AWN 317 | -10/Exiles | Build established: Mutant 334 | -10/Exiles | Met EX-HEX 403 | -10/Exiles | Met EX-DEC 430 | -10/Exiles | Visited The Gauntlet 641 | -10/Exiles | Met EX-BIN 793 | -10/Exiles | Aligned with FarCom system 795 | -10/Exiles | Given EX-Vault access code 847 | -10/Exiles | Opened EX-Vault 850 | -10/Exiles | Found Prototype Device 851 | -10/Exiles | Identified Trap Reconfigurator 855 | -10/Exiles | Found Prototype Slashing Weapon 856 | -10/Exiles | Identified Longsword +1 885 | -10/Exiles | Found Deploy-a-Sentry 889 | -10/Exiles | Found Deploy-a-Sentry 913 | -10/Exiles | Warned to stay clear of 0b10 Research branches 1038 | -10/Exiles | Discovered new exit (range 14) 1136 | -10/Exiles | Stole three prototypes: Longsword +1, Trap Reconfigurator, Deploy-a-Sentry 1136 | -10/Exiles | Entered Mines 1284 | -9/Mines | Found the Drone Emporium 1289 | -9/Mines | Learned location of Storage (-8) 1291 | -9/Mines | Found Prototype Device 1304 | -9/Mines | Identified Thief Drone Bay 1496 | -9/Mines | DAS Turret deployed 1642 | -9/Mines | Discovered new exit (range 11) 1660 | -9/Mines | Received a Rocket Launcher from a helpful Derelict 1837 | -9/Mines | Entered Materials 1837 | -8/Materials | Evolved 4 slots: Propulsion x4 1964 | -8/Materials | DAS Turret deployed 2100 | -8/Materials | Crushed by falling debris 2602 | -8/Materials | Discovered new exit (range 16) 2703 | -8/Materials | Entered Storage 2729 | -8/Storage | Lost 6 parts (6n) 2786 | -8/Storage | Identified exit to Recycling 2878 | -8/Storage | Build established: Gladiator 2887 | -8/Storage | Core integrity fell below 50% 2944 | -8/Storage | Core integrity fell below 20% 2993 | -8/Storage | Destroyed by Y-45 Defender with Beam Rifle Last Messages --------------- corrupted. 02952_ Lgt. Armor Plating fried. 02952_ Heat Sink fried. 02953_ Acquired 18 matter. 02959_ Destroyed Heat Sink. 02959_ Y-45 Defender system corrupted by crushing effect. 02960_ Y-45 Defender system terminally corrupted. 02968_ Acquired Corrupted Lgt. Treads. 02976_ Dropped Corrupted Lgt. Treads. 02984_ Longsword +1 follow-up attack on Y-45 Defender. 02984_ Y-45 Defender Lgt. Treads severed. 02985_ K-01 Serf collects debris. 02990_ Longsword +1 follow-up attack on Y-45 Defender. 02992_ K-01 Serf collects debris. 02993_ System corrupted: Heat flow error (+148). 02993_ Acquired Lgt. Treads. Map ----- +----------------------------------------------------+ | ????????????????????????????????????? | | ????????????????????????????????????? | | ?????????????>??????????????????????? | | ????????????????????????????????????? | | ????????????????????????????????????? | | ????????????????????????????????????? | | ????????????????????????????????????? | | ????????????????????????????????????? | | ????????????????????????????????????? | | ????????????????????????????????????? | | ???????????? ??????????????????????? | | ???????????? ??????????????????????? | | ???????????? ??????????????????????? | | ???????????# #?????????????????????? | | ???????????+ #?????????????????????? | | ???????????# #?????????????????????? | | ???????????# #?????????????????????? | | ???????????# #?????????????????????? | | ?Y?????????# #?????????????????????? | | ???????????# r#?????????????????????? | | ???????????# #?????????????????????? | | ?????#####?# ###???????????????????? | | ?????? # # ###########?????????? | | ????????"" #k[# #?????????? | | ?????????? /uY/% """ """ #?????????? | | ???????????#@=#* """ ""????????????? | | ???????????# =# """ "?????????????? | | ???????????#= # """ "?????????????? | | ???????????# # """ "?????????????? | | ?Y?????????# # Y ??????????????? | | ???????????# #####+###?????????????? | | ??????????## ##??? #???????????????? | | ??????????#% % #### #???????????????? | | ??????????+! #???????????????? | | ??????????# +???????????????? | | ??????????# ! #???????????????? | | ??????????### % #???????????????? | | ???????# #### a #???????????????? | | ???????# #???????????????? | | ???????# + ??????????? | | ???????# ########## # #?????????? | | ???????#?????????## #? #?????????? | | ??????##+#######?## +?? #?????????? | | ??????# #?## ##???##?????????? | | ??????# """ #### #######?????????? | | ??????# """ + +?????????? | | ??????# """ #### ####?????????? | | ??????# #??# #????????????? | | ??????# """ #??# #????????????? | | ??????# """ #??# ####????????????? | +----------------------------------------------------+ Best States ------------- Heat Dissipation 31 Energy Generation 14 Energy Capacity 350 Matter Stores 300 Matter Capacity 300 Sight Range 16 Terrain Scan Density 10 Evasion (%) 65 Melee Accuracy 5 Item Schematics ----------------- None Robot Schematics ------------------ None Fabricated ------------ Nothing Alien Tech Used ----------------- None Achievements -------------- Part-time Excavator Challenges ------------ None Game ------ Seed CoolantHackingBeam Manual? 0 Play Time 00:50:41 Cumulative 18.0 hours Start 2024.10.19 @ 07:50:32 End 2024.10.19 @ 08:40:52 Sessions 1 Manual Loads 0 Difficulty Rogue Special Mode None Game No. 27 Rogue 27 Adventurer 0 Explorer 0 Win Type - Total 0 Types 0/0/0/0/0/0/0/0/0 Lore% 13 Gallery% 23 Achievement% 23 Wizard Run 0 Options --------- Layout 1 ASCII 1 Keyboard 0 Movement Arrows Keybinds 0 Fullscreen 1 Font 24/Smallcaps Map View 50x35 Zoom Use 0% Tactical HUD 1 Map Filters NONE Filters NONE Steam 1 RUN: 88650d9f-455d-4dd8-8216-d77b7a956aa5